bitfinex/quotes_SOLUSD_20250410
["timestamp","ask_amount","ask_price","bid_price","bid_amount"]
[1744246855338,20.2850713,117.63,117.58,118.0534713]
[1744246856050,8.5005,117.64,117.58,118.0534713]
[1744246856462,8.5005,117.64,117.59,20.2850713]
[1744246856667,8.5005,117.64,117.58,97.7684]
[1744246856668,18.933972,117.65,117.6,20.2850713]
[1744246856966,38.93472016,117.65,117.6,20.2850713]
[1744246857260,20.2850713,117.62,117.58,89.2639]
[1744246858161,28.7875713,117.62,117.58,89.2639]
[1744246858362,35.0221713,117.62,117.58,89.2639]
[1744246858883,20.2850713,117.61,117.58,89.2639]
[1744246859175,18.933972,117.6,117.55,81.0439]
[1744246859468,39.2190433,117.58,117.53,28.7934713]
[1744246859843,18.933972,117.6,117.54,20.2850713]
[1744246860242,28.7891713,117.59,117.54,28.7923713]
[1744246860845,27.437672,117.6,117.54,28.7923713]
[1744246861045,20.2850713,117.59,117.54,28.7923713]
[1744246861480,18.933972,117.6,117.55,20.2850713]
[1744246861767,1.6262,117.61,117.56,20.2850713]
[1744246861979,18.933972,117.6,117.56,20.2850713]
[1744246862282,8.5048,117.58,117.54,28.7923713]
[1744246862478,0.28432314,117.57,117.52,372.7039]
[1744246862763,38.93472016,117.54,117.49,97.775]
[1744246862987,20.2850713,117.53,117.49,97.775]
[1744246863189,0.28432314,117.53,117.49,97.838]
[1744246863350,0.28432314,117.53,117.49,118.1230713]
[1744246863675,22.19559444,117.55,117.5,20.2850713]
[1744246863845,1.6262,117.55,117.51,20.2850713]
[1744246864163,1.6262,117.55,117.52,20.2850713]
[1744246864356,6.2939,117.57,117.53,28.7934713]
[1744246864769,26.5789713,117.57,117.53,8.5084]
[1744246865363,6.2939,117.57,117.53,8.5084]
[1744246865864,6.2939,117.57,117.53,50.0645713]
[1744246866650,6.2939,117.57,117.53,29.7795]
[1744246866852,6.2939,117.57,117.53,50.0645713]
[1744246867459,26.5789713,117.57,117.53,8.5084]
[1744246867660,35.0844713,117.57,117.52,109.8377713]
[1744246868169,26.5789713,117.57,117.52,109.8377713]
[1744246868750,6.2939,117.57,117.53,20.2850713]
[1744246869150,26.5789713,117.57,117.54,8.5077]
[1744246869461,20.2850713,117.56,117.53,8.5082]
[1744246870166,26.5789713,117.57,117.53,8.5082]
[1744246870469,20.2850713,117.56,117.53,8.5082]
[1744246870774,14.7995,117.57,117.53,8.5082]
[1744246870949,20.2850713,117.56,117.53,8.5082]
[1744246871446,20.2850713,117.56,117.52,89.5527]
[1744246871978,20.2850713,117.53,117.49,81.1069]
[1744246872269,20.2850713,117.53,117.5,8.5106]
[1744246872973,20.2850713,117.53,117.49,89.6179]
[1744246873171,28.7935713,117.53,117.49,89.6179]
[1744246873473,20.2850713,117.52,117.49,89.6179]
[1744246873874,30.4161713,117.53,117.49,89.6179]
[1744246874073,20.2850713,117.52,117.49,89.6179]
[1744246874284,10.1311,117.53,117.49,89.6179]
[1744246874457,20.2850713,117.52,117.49,89.6179]
[1744246874982,20.2850713,117.5,117.49,0.063]
[1744246875280,39.2190433,117.51,117.49,0.063]
[1744246875597,20.2850713,117.5,117.49,0.063]
[1744246876070,39.2190433,117.5,117.49,0.063]
[1744246876663,18.933972,117.5,117.49,0.063]
[1744246877883,47.7296433,117.5,117.49,0.063]
[1744246878060,49.3522433,117.5,117.49,0.063]
[1744246879568,49.3522433,117.5,117.47,0.063]
[1744246879569,20.2850713,117.48,117.47,0.063]
[1744246879882,39.2190433,117.48,117.47,0.063]
[1744246880583,59.5041146,117.48,117.44,0.063]
[1744246880760,39.2190433,117.45,117.44,0.063]
[1744246880961,40.8812433,117.45,117.44,0.063]
[1744246881575,49.3954433,117.45,117.44,0.063]
[1744246884788,49.3954433,117.45,117.43,0.063]
[1744246884789,18.933972,117.44,117.43,0.063]
[1744246884979,59.5041146,117.44,117.42,0.063]
[1744246885180,38.3975,117.45,117.42,0.063]
[1744246885181,67.7241146,117.43,117.42,0.063]
[1744246885579,47.4390433,117.43,117.42,0.063]
[1744246886063,27.450372,117.42,117.4,0.063]
[1744246886268,39.2190433,117.41,117.4,0.063]
[1744246886968,55.8338433,117.41,117.4,0.063]
[1744246887168,35.548772,117.41,117.4,0.063]
[1744246887381,47.3167433,117.41,117.4,0.063]
[1744246888387,18.64964886,117.42,117.4,0.063]
[1744246888764,6.3369,117.44,117.4,20.3480713]
[1744246888968,18.64964886,117.45,117.41,20.2850713]
[1744246889167,18.64964886,117.45,117.42,8.5164]
[1744246889574,20.2850713,117.46,117.42,8.5164]
[1744246889785,18.64964886,117.45,117.42,28.8014713]
[1744246890189,18.64964886,117.45,117.42,8.5164]
[1744246890886,0.14216157,117.46,117.42,28.8014713]
[1744246891097,18.79181043,117.46,117.42,28.8014713]
[1744246891279,6.3369,117.47,117.43,32.56664421]
[1744246891480,51.21629307,117.49,117.44,32.56664421]
[1744246891788,32.56664421,117.49,117.44,32.56664421]
[1744246891976,18.933972,117.48,117.44,32.56664421]
[1744246892685,18.64964886,117.48,117.45,8.5142]
[1744246894089,40.44434421,117.5,117.45,8.5142]
[1744246894278,6.3369,117.5,117.46,32.56664421]
[1744246894596,38.90354421,117.5,117.45,41.08084421]
[1744246894896,51.50061621,117.49,117.44,41.08124421]
[1744246895371,32.56664421,117.48,117.43,41.08194421]
[1744246896796,41.07894421,117.48,117.43,41.08194421]
[1744246896971,32.56664421,117.48,117.43,41.08194421]
[1744246897494,18.933972,117.49,117.43,41.08194421]
[1744246897701,51.50061621,117.49,117.44,32.56664421]
[1744246897870,6.3369,117.5,117.45,32.56664421]
[1744246898399,6.3369,117.5,117.46,32.56664421]
[1744246898771,7.8777,117.53,117.48,8.512]
[1744246898970,7.8777,117.53,117.48,41.07864421]
[1744246899208,54.42452282,117.57,117.49,32.56664421]
[1744246899388,32.56664421,117.55,117.5,32.56664421]
[1744246900101,51.21629307,117.56,117.5,32.56664421]
[1744246900290,32.56664421,117.56,117.5,32.56664421]
[1744246900898,0.03,117.54,117.51,8.5099]
[1744246901081,0.03,117.54,117.51,89.5538]
[1744246905701,0.03,117.54,117.51,122.12044421]
[1744246906095,0.03,117.54,117.52,32.56664421]
[1744246906294,0.03,117.54,117.52,113.61054421]
[1744246906480,0.03,117.54,117.53,32.56664421]
[1744246906684,0.03,117.54,117.53,113.61054421]
[1744246907386,1.5569,117.61,117.53,113.61054421]
[1744246907613,8.5327,117.61,117.53,81.0439]
[1744246907811,32.56664421,117.6,117.55,32.56664421]
[1744246908023,32.56664421,117.6,117.56,8.5062]
[1744246908303,32.56664421,117.59,117.56,89.5501]
[1744246909007,32.56664421,117.58,117.56,81.0439]
[1744246909376,0.28432314,117.59,117.56,81.0439]
[1744246909377,32.56664421,117.57,117.56,81.0439]
[1744246909598,32.56664421,117.58,117.54,8.5074]
[1744246909906,31.56664421,117.58,117.54,8.5074]
[1744246910410,32.85096735,117.59,117.54,41.07404421]
[1744246910795,32.85096735,117.59,117.54,62.34334421]
[1744246910796,32.56664421,117.59,117.54,62.34334421]
[1744246910996,32.56664421,117.6,117.55,32.56664421]
[1744246911299,0.03,117.61,117.55,113.61054421]
[1744246911605,32.56664421,117.6,117.55,113.61054421]
[1744246912007,32.59664421,117.61,117.57,29.7694]
[1744246912394,0.03,117.61,117.57,29.7694]
[1744246912593,0.03,117.61,117.57,62.33604421]
[1744246913002,32.59664421,117.61,117.57,29.7694]
[1744246913787,0.03,117.61,117.57,29.7694]
[1744246913988,32.59664421,117.61,117.57,29.7694]
[1744246914303,0.03,117.61,117.57,62.33604421]
[1744246914481,32.59664421,117.61,117.57,62.33604421]
[1744246914687,32.59664421,117.61,117.57,8.5055]
[1744246916794,41.09924421,117.61,117.57,89.5494]
[1744246917109,32.85096735,117.6,117.57,81.0439]
[1744246917329,18.933972,117.6,117.57,81.0439]
[1744246917484,32.56664421,117.59,117.54,41.07394421]
[1744246917810,0.03,117.61,117.57,32.56664421]
[1744246918584,0.03,117.61,117.58,8.5048]
[1744246920036,0.03,117.61,117.6,20.3033744]
[1744246920590,0.03,117.61,117.6,28.8067744]
[1744246920907,0.03,117.61,117.6,8.5034]
[1744246921117,0.03,117.61,117.59,28.8072744]
[1744246921431,0.03,117.61,117.59,8.5039]
[1744246922009,0.03,117.61,117.6,32.47975765]
[1744246922828,0.03,117.61,117.6,40.98315765]
[1744246923592,0.03,117.61,117.6,122.02705765]
[1744246923992,0.03,117.64,117.61,1.5306]
[1744246924212,0.03,117.64,117.63,32.47975765]
[1744246924593,0.03,117.64,117.62,40.69975765]
[1744246924994,0.03,117.64,117.62,49.20115765]
[1744246925194,0.03,117.64,117.63,32.47975765]
[1744246925997,0.03,117.64,117.63,113.52365765]
[1744246926190,0.03,117.64,117.63,164.64365765]
[1744246926417,0.03,117.64,117.63,113.52365765]
[1744246927217,0.03,117.64,117.63,122.02485765]
[1744246928301,0.03,117.65,117.63,122.02485765]
[1744246928503,0.03,117.72,117.63,122.02485765]
[1744246928504,0.03,117.71,117.68,26.0]
[1744246928696,6.246,117.84,117.68,26.0]
[1744246928697,6.246,117.89,117.76,25.86432314]
[1744246928897,235.42827109,117.94,117.88,32.47975765]
[1744246928898,32.84562195,117.93,117.88,32.47975765]
[1744246929096,32.84562195,117.93,117.91,58.47975765]
[1744246929097,26.15869678,117.93,117.91,58.47975765]
[1744246929317,26.15869678,117.93,117.91,32.47975765]
[1744246929623,26.15869678,117.93,117.88,89.2639]
[1744246930035,256.98671948,117.94,117.89,32.47975765]
[1744246930322,32.47975765,117.93,117.87,32.47975765]
[1744246930933,32.47975765,117.89,117.84,81.0439]
[1744246931134,32.47975765,117.91,117.85,32.47975765]
[1744246931419,18.64964886,117.93,117.86,32.47975765]
[1744246931615,18.64964886,117.91,117.86,32.47975765]
[1744246931933,0.14216157,117.9,117.86,32.47975765]
[1744246932101,16.6991,117.94,117.87,32.47975765]
[1744246932305,16.6991,117.94,117.88,32.47975765]
[1744246932610,32.47975765,117.94,117.88,32.47975765]
[1744246932919,32.47975765,117.95,117.9,32.47975765]
[1744246933124,32.47975765,117.96,117.91,32.47975765]
[1744246933301,8.24,117.98,117.92,32.47975765]
[1744246933502,32.47975765,117.97,117.92,32.47975765]
[1744246933720,32.47975765,117.97,117.92,113.52365765]
[1744246934027,32.47975765,117.97,117.89,18.64964886]
[1744246934028,0.14216157,117.93,117.89,81.0439]
[1744246934200,0.28432314,117.92,117.89,81.0439]
[1744246934400,32.47975765,117.94,117.89,89.5263]
[1744246934600,0.14216157,117.94,117.89,122.00605765]
[1744246934800,0.14216157,117.94,117.89,89.5263]
[1744246935006,0.14216157,117.94,117.89,81.0439]
[1744246935007,32.62191922,117.94,117.89,81.0439]
[1744246935210,0.14216157,117.93,117.89,81.0439]
[1744246935419,32.76408079,117.93,117.92,12.86446358]
[1744246936008,0.14216157,117.92,117.89,81.0439]
[1744246936523,8.62256157,117.92,117.89,81.0439]
[1744246936818,0.14216157,117.92,117.89,81.0439]
[1744246937226,0.14216157,117.91,117.89,81.0439]
[1744246937913,0.14216157,117.9,117.88,12.86446358]
[1744246938115,40.69975765,117.96,117.88,45.34422123]
[1744246938302,0.28432314,117.93,117.88,134.87122123]
[1744246938507,51.12940651,117.92,117.88,81.0439]
[1744246938708,0.28432314,117.9,117.87,103.30473625]
[1744246938910,0.28432314,117.9,117.87,116.16919983]
[1744246939622,0.28432314,117.9,117.87,184.34863625]
[1744246940320,0.28432314,117.9,117.87,216.8283939]
[1744246940707,18.933972,117.93,117.87,225.3122939]
[1744246940909,18.933972,117.93,117.87,192.83253625]
[1744246941132,0.28432314,117.93,117.87,225.3122939]
[1744246941335,0.28432314,117.93,117.87,192.83253625]
[1744246941537,39.09298079,117.93,117.87,192.83253625]
[1744246941723,38.80865765,117.93,117.87,225.3122939]
[1744246941933,0.14216157,117.92,117.88,32.47975765]
[1744246942110,0.28432314,117.92,117.88,32.47975765]
[1744246942306,0.28432314,117.92,117.88,81.0439]
[1744246942610,8.76472314,117.92,117.88,81.0439]
[1744246943024,0.28432314,117.9,117.88,81.0439]
[1744246943431,32.76408079,117.9,117.88,81.0439]
[1744246943627,0.28432314,117.9,117.88,81.0439]
[1744246943931,32.76408079,117.9,117.88,81.0439]
[1744246944143,32.47975765,117.89,117.88,81.0439]
[1744246944321,41.24648079,117.89,117.87,103.30473625]
[1744246944529,8.76672314,117.89,117.87,103.30473625]
[1744246945045,51.41372965,117.88,117.87,103.30473625]
[1744246945619,32.76408079,117.88,117.87,103.30473625]
[1744246945934,41.24728079,117.88,117.87,103.30473625]
[1744246946145,8.76752314,117.88,117.87,103.30473625]
[1744246946332,41.24728079,117.88,117.87,103.30473625]
[1744246946734,41.24728079,117.88,117.84,81.0439]
[1744246946945,32.47975765,117.87,117.84,81.0439]
[1744246947443,8.76752314,117.88,117.84,81.0439]
[1744246947611,41.24728079,117.88,117.84,81.0439]
[1744246947814,32.47975765,117.87,117.84,81.0439]
[1744246948039,40.96395765,117.87,117.84,81.0439]
[1744246948844,8.4842,117.87,117.84,81.0439]
[1744246949540,0.28432314,117.88,117.84,89.5298]
[1744246949714,40.98408079,117.88,117.84,89.5298]
[1744246949914,32.76408079,117.88,117.84,89.5298]
[1744246951020,41.24738079,117.88,117.84,81.0439]
[1744246952113,0.28432314,117.85,117.84,81.0439]
[1744246952344,0.28432314,117.85,117.82,81.1069]
[1744246953344,32.47975765,117.92,117.85,81.0439]
[1744246953643,32.47975765,117.88,117.82,81.1069]
[1744246953846,0.28432314,117.86,117.82,81.1069]
[1744246954062,0.28432314,117.86,117.82,89.5943]
[1744246954639,32.47975765,117.85,117.82,81.1069]
[1744246954847,8.76912314,117.86,117.82,81.1069]
[1744246955055,32.76408079,117.86,117.82,89.5943]
[1744246955359,0.28432314,117.86,117.82,89.5943]
[1744246955567,40.96325765,117.88,117.82,89.5943]
[1744246955746,0.28432314,117.87,117.82,122.07405765]
[1744246955930,0.28432314,117.87,117.82,89.5943]
[1744246956136,32.47975765,117.86,117.82,89.5943]
[1744246956564,41.24798079,117.87,117.82,89.5943]
[1744246956947,32.76408079,117.87,117.82,89.5943]
[1744246957442,0.28432314,117.87,117.83,32.47975765]
[1744246957844,0.28432314,117.88,117.83,113.52365765]
[1744246958263,0.28432314,117.88,117.83,81.0439]
[1744246958480,14.2507,117.9,117.84,40.96575765]
[1744246958645,14.2507,117.9,117.85,32.47975765]
[1744246958842,14.2507,117.9,117.85,113.52365765]
[1744246959041,32.76408079,117.89,117.85,81.0439]
[1744246959241,32.47975765,117.89,117.85,81.0439]
[1744246959443,0.28432314,117.87,117.84,81.0439]
[1744246960264,32.76408079,117.87,117.84,81.0439]
[1744246960465,41.24828079,117.87,117.84,81.0439]
[1744246961775,0.28432314,117.85,117.84,81.0439]
[1744246962151,32.76408079,117.85,117.82,81.1069]
[1744246962354,0.28432314,117.83,117.82,81.1069]
[1744246962561,0.28432314,117.83,117.82,0.063]
[1744246963771,8.77112314,117.83,117.82,0.063]
[1744246963979,41.25088079,117.83,117.82,0.063]
[1744246964180,0.28432314,117.83,117.82,0.063]
[1744246964676,40.96605765,117.84,117.82,0.063]
[1744246964850,32.76408079,117.83,117.82,0.063]
[1744246965352,0.28432314,117.83,117.82,0.063]
[1744246966465,8.77112314,117.83,117.82,0.063]
[1744246967047,27.420772,117.83,117.82,0.063]
[1744246967253,66.41092965,117.83,117.82,0.063]
[1744246972572,33.931172,117.83,117.82,0.063]
[1744246972876,66.41092965,117.83,117.82,0.063]
[1744246973259,74.65092965,117.83,117.82,0.063]
[1744246973572,62.4119291,117.83,117.82,0.063]
[1744246975877,33.64684886,117.83,117.82,0.063]
[1744246976181,33.931172,117.83,117.82,0.063]
[1744246976364,54.1719291,117.83,117.82,0.063]
[1744246976679,54.02976753,117.83,117.82,0.063]
[1744246976975,54.1719291,117.83,117.82,0.063]
[1744246977277,35.52228024,117.83,117.82,0.063]
[1744246977964,28.86971867,117.83,117.82,0.063]
[1744246978278,29.01188024,117.83,117.82,0.063]
[1744246979954,20.52508024,117.83,117.82,0.063]
[1744246981675,29.01188024,117.83,117.82,0.063]
[1744246982195,29.01188024,117.83,117.79,81.1069]
[1744246982196,0.28432314,117.82,117.79,0.063]
[1744246982361,68.59420596,117.83,117.79,0.063]
[1744246982362,39.1747291,117.8,117.79,0.063]
[1744246982874,45.4329291,117.8,117.79,0.0001]
[1744246983181,1.81632314,117.78,117.77,0.063]
[1744246983486,50.53783734,117.78,117.77,0.063]
[1744246983855,77.6778862,117.78,117.77,0.0001]
[1744246985193,18.933972,117.77,117.7,81.1069]
[1744246985356,0.28432314,117.72,117.7,81.1069]
[1744246985563,32.70825555,117.72,117.7,0.063]
[1744246985769,40.91933241,117.71,117.7,0.063]
[1744246987170,59.85330441,117.71,117.7,0.063]
[1744246988087,0.28432314,117.71,117.7,0.063]
[1744246988377,41.20365555,117.71,117.7,0.063]
[1744246988585,8.77972314,117.71,117.7,0.063]
[1744246989085,41.20365555,117.71,117.7,0.063]
[1744246991786,8.77972314,117.71,117.7,0.063]
[1744246994569,41.20365555,117.71,117.7,0.063]
[1744246995170,8.77972314,117.71,117.7,0.063]
[1744246995371,41.20365555,117.71,117.7,0.063]
[1744246995870,59.85330441,117.71,117.7,0.063]
[1744246996277,59.85330441,117.71,117.7,0.0001]
[1744246996278,61.39970441,117.71,117.7,0.0001]
[1744246996481,8.4968,117.69,117.6,8.5034]
[1744246996793,0.28432314,117.64,117.6,121.97123241]
[1744246997001,32.42393241,117.67,117.62,32.42393241]
[1744246997207,8.22,117.68,117.63,32.42393241]
[1744246997497,0.28432314,117.67,117.62,113.46783241]
[1744246997713,0.28432314,117.65,117.62,81.0439]
[1744246998871,40.92253241,117.67,117.62,121.96943241]
[1744246999075,0.28432314,117.66,117.62,121.96943241]
[1744246999574,0.28432314,117.66,117.65,0.063]
[1744247001101,8.78332314,117.66,117.65,0.063]
[1744247002199,41.20725555,117.66,117.65,0.063]
[1744247002977,59.85690441,117.66,117.65,0.063]
[1744247003777,92.28083682,117.66,117.65,0.063]
[1744247004902,59.85690441,117.66,117.65,0.063]
[1744247005683,92.28083682,117.66,117.65,0.063]
[1744247005995,59.85690441,117.66,117.65,0.063]
[1744247007298,47.5843817,117.66,117.65,0.063]
[1744247007900,27.432972,117.66,117.65,0.063]
[1744247008100,47.72654327,117.66,117.65,0.063]
[1744247012315,47.72654327,117.66,117.6,0.063]
[1744247012316,26.0,117.62,117.6,0.063]
[1744247012484,26.0,117.62,117.55,81.0439]
[1744247012485,47.44754327,117.61,117.55,81.0439]
[1744247012810,18.79181043,117.59,117.55,81.0439]
[1744247013180,39.0853817,117.57,117.53,0.063]
[1744247013380,0.14216157,117.56,117.53,0.063]
[1744247013611,20.43573284,117.56,117.53,0.063]
[1744247013984,28.65573284,117.56,117.53,0.063]
[1744247014303,0.28432314,117.54,117.53,0.063]
[1744247015989,51.45807038,117.54,117.53,0.063]
[1744247016396,59.96577038,117.54,117.53,0.063]
[1744247019209,8.5019,117.62,117.53,115.19299838]
[1744247019521,47.21999838,117.63,117.58,32.52409838]
[1744247019694,32.52409838,117.62,117.58,81.0439]
[1744247019897,0.28432314,117.6,117.58,81.0439]
[1744247020296,41.02729838,117.61,117.58,81.0439]
[1744247020619,0.28432314,117.6,117.58,81.0439]
[1744247021127,41.02729838,117.61,117.58,81.0439]
[1744247021422,32.52409838,117.6,117.55,41.03039838]
[1744247021595,0.28432314,117.59,117.55,122.07429838]
[1744247021790,0.28432314,117.59,117.55,122.07479838]
[1744247022815,8.78852314,117.59,117.55,122.07479838]
[1744247023812,0.28432314,117.59,117.55,122.07479838]
[1744247024803,8.78852314,117.59,117.55,122.07479838]
[1744247025593,8.78852314,117.59,117.55,81.0439]
[1744247026007,41.31262152,117.59,117.55,81.0439]
[1744247026389,0.28432314,117.57,117.55,81.0439]
[1744247026592,32.80842152,117.57,117.53,81.1069]
[1744247027109,41.31402152,117.57,117.53,89.6152]
[1744247027319,32.52409838,117.56,117.53,81.1069]
[1744247027810,41.31402152,117.57,117.53,81.1069]
[1744247028595,32.52409838,117.56,117.53,81.1069]
[1744247029416,41.31402152,117.57,117.53,89.6153]
[1744247029816,32.52409838,117.56,117.53,81.1069]
[1744247030912,41.31402152,117.57,117.53,89.6152]
[1744247031097,41.31402152,117.57,117.53,81.1069]
[1744247031824,8.78992314,117.57,117.53,81.1069]
[1744247032028,32.52409838,117.56,117.53,81.1069]
[1744247032705,32.52409838,117.55,117.53,81.1069]
[1744247033099,32.80842152,117.54,117.53,0.063]
[1744247033696,32.52409838,117.55,117.53,0.063]
[1744247034102,41.31492152,117.56,117.53,0.063]
[1744247034817,32.52409838,117.55,117.53,0.063]
[1744247035197,8.79082314,117.56,117.53,0.063]
[1744247035198,32.80842152,117.54,117.53,0.063]
[1744247035808,32.52409838,117.54,117.53,0.063]
[1744247036014,41.03149838,117.55,117.53,0.063]
[1744247036820,8.5074,117.55,117.53,0.063]
[1744247037000,41.03149838,117.55,117.53,0.063]
[1744247037422,8.79032314,117.57,117.53,0.063]
[1744247037617,29.11716479,117.57,117.53,81.1069]
[1744247040528,8.79032314,117.57,117.53,81.1069]
[1744247040702,29.11716479,117.57,117.53,81.1069]
[1744247040904,20.32684165,117.57,117.53,89.6152]
[1744247041103,28.83094165,117.59,117.55,8.507]
[1744247041511,20.32684165,117.58,117.53,103.01084165]
[1744247041930,0.14216157,117.58,117.53,81.1069]
[1744247042133,0.28432314,117.58,117.53,81.1069]
[1744247042628,20.32684165,117.57,117.53,81.1069]
[1744247042838,8.5041,117.59,117.53,109.94214165]
[1744247043009,20.32684165,117.58,117.53,109.94214165]
[1744247043412,28.83174165,117.58,117.53,109.94214165]
[1744247043619,20.32684165,117.58,117.53,109.94214165]
[1744247043822,8.5037,117.6,117.54,20.32684165]
[1744247044002,28.83054165,117.6,117.55,20.32684165]
[1744247044930,28.83054165,117.6,117.56,8.5062]
[1744247045626,20.32684165,117.58,117.54,81.0439]
[1744247045826,20.32684165,117.56,117.54,81.0439]
[1744247046934,28.83364165,117.56,117.54,81.0439]
[1744247047629,20.32684165,117.56,117.54,81.0439]
[1744247047807,20.32684165,117.57,117.54,89.5515]
[1744247048632,28.83234165,117.57,117.54,81.0439]
[1744247049130,8.5051,117.58,117.54,89.5516]
[1744247049311,28.83194165,117.58,117.54,89.5516]
[1744247050241,28.83194165,117.58,117.54,81.0439]
[1744247050417,28.83194165,117.58,117.54,89.5515]
[1744247050624,20.32684165,117.58,117.54,89.5515]
[1744247051137,20.32684165,117.58,117.54,81.0439]
[1744247051533,8.5055,117.57,117.54,81.0439]
[1744247051742,28.83234165,117.57,117.54,81.0439]
[1744247052936,8.5055,117.57,117.54,81.0439]
[1744247053130,28.83234165,117.57,117.54,81.0439]
[1744247054337,20.32684165,117.56,117.54,81.0439]
[1744247054732,0.28432314,117.57,117.54,81.0439]
[1744247055033,20.32684165,117.56,117.54,81.0439]
[1744247056437,29.11696479,117.57,117.54,81.0439]
[1744247058246,8.79012314,117.57,117.54,81.0439]
[1744247058446,29.11696479,117.57,117.54,81.0439]
[1744247058837,20.32684165,117.56,117.54,81.0439]
[1744247060414,28.83324165,117.56,117.54,81.0439]
[1744247061434,8.5064,117.56,117.54,81.0439]
[1744247062845,28.83244165,117.57,117.54,81.0439]
[1744247063753,0.28432314,117.59,117.54,89.5512]
[1744247063927,20.32684165,117.58,117.54,89.5512]
[1744247065123,28.83094165,117.59,117.54,109.87804165]
[1744247065528,8.5019,117.62,117.55,38.97649051]
[1744247065749,20.32684165,117.6,117.55,120.02039051]
[1744247065951,8.5019,117.62,117.56,20.32684165]
[1744247066151,20.32684165,117.6,117.56,20.32684165]
[1744247066337,20.32684165,117.59,117.55,81.0439]
[1744247066664,19.82684165,117.59,117.55,81.0439]
[1744247067063,28.83074165,117.6,117.55,109.87714165]
[1744247067270,20.32684165,117.61,117.56,20.32684165]
[1744247067473,0.03,117.65,117.57,5.9997]
[1744247067777,0.03,117.65,117.61,20.32684165]
[1744247067940,0.03,117.65,117.61,101.37074165]
[1744247068758,0.03,117.65,117.61,105.71647924]
[1744247069158,0.03,117.65,117.62,8.5019]
[1744247070964,0.03,117.65,117.62,50.08354165]
[1744247071172,0.03,117.65,117.64,8.5005]
[1744247071470,0.03,117.65,117.64,89.5444]
[1744247072046,0.03,117.65,117.64,109.87124165]
[1744247072467,0.03,117.65,117.64,128.52089051]
[1744247072680,0.03,117.65,117.64,109.87124165]
[1744247072844,0.03,117.65,117.64,81.0439]
[1744247073275,20.35684165,117.65,117.64,81.0439]
[1744247073683,20.64116479,117.65,117.64,81.0439]
[1744247075181,29.14086479,117.65,117.64,81.0439]
[1744247076058,35.78686479,117.65,117.64,81.0439]
[1744247077057,0.28432314,117.64,117.58,81.0439]
[1744247077292,20.32684165,117.6,117.58,81.0439]
[1744247079271,28.83094165,117.6,117.58,81.0439]
[1744247079784,6.676,117.65,117.58,101.37074165]
[1744247079976,28.82744165,117.64,117.59,20.32684165]
[1744247080158,28.82744165,117.64,117.59,101.37074165]
[1744247080366,20.32684165,117.63,117.59,101.37074165]
[1744247081665,20.35684165,117.65,117.6,20.32684165]
[1744247081978,0.03,117.65,117.61,20.32684165]
[1744247082182,0.03,117.65,117.61,101.37074165]
[1744247082382,0.03,117.65,117.62,20.32684165]
[1744247083180,0.03,117.65,117.63,20.32684165]
[1744247083387,0.03,117.65,117.63,101.37074165]
[1744247083578,0.03,117.65,117.63,109.87164165]
[1744247084976,0.03,117.65,117.64,20.32684165]
[1744247085167,0.03,117.65,117.64,101.37074165]
[1744247085363,0.03,117.7,117.65,81.0139]
[1744247085584,0.03,117.7,117.69,28.82364165]
[1744247085780,0.03,117.7,117.69,109.83754165]
[1744247087378,0.03,117.7,117.69,81.0139]
[1744247087701,0.03,117.7,117.69,113.42995932]
[1744247088374,0.03,117.7,117.69,121.92675932]
[1744247088787,0.03,117.7,117.69,140.57640818]
[1744247089791,0.03,117.71,117.7,99.63354886]
[1744247090169,0.03,117.71,117.7,132.04960818]
[1744247091793,0.03,117.71,117.7,140.54570818]
[1744247093495,0.0001,117.71,117.7,140.83003132]
[1744247094267,0.0001,117.71,117.7,140.54570818]
[1744247096104,0.0001,117.71,117.7,144.71072332]
[1744247096308,0.03,117.76,117.74,80.9538]
[1744247096474,0.03,117.76,117.75,32.41605932]
[1744247097774,0.03,117.76,117.74,80.9538]
[1744247097974,0.03,117.76,117.74,113.36985932]
[1744247099001,0.03,117.76,117.74,121.86305932]
[1744247100616,0.03,117.76,117.74,80.9538]
[1744247101289,0.03,117.76,117.74,121.86295932]
[1744247102383,0.03,117.76,117.74,80.9538]